[Event "Titled Tuesday Blitz November 07 Early 2023"]
[White "Mendez Fortes, Eduardo Jesus"]
[Black "Smietanska, Wiktoria"]
[WhiteFideId "3502376"]
[BlackFideId "21869359"]
[WhiteElo "2646"]
[BlackElo "2266"]
[Result "1-0"]
[Round "4"]
[TimeControl "180+1"]
[Date "2023.11.07"]
[WhiteClock "0:00:34"]
[BlackClock "0:00:01"]
[Board "212"]

1. a4 {[%clk 0:03:00]}  e5 {[%clk 0:02:56]} 2. g3 {[%clk 0:02:56]}  d5 {[%clk 0:02:54]} 3. Bg2 {[%clk 0:02:56]}  Nc6 {[%clk 0:02:52]} 4. e3 {[%clk 0:02:56]}  g6 {[%clk 0:02:44]} 5. Ne2 {[%clk 0:02:56]}  Bg7 {[%clk 0:02:45]} 6. c3 {[%clk 0:02:56]}  Nge7 {[%clk 0:02:45]} 7. d4 {[%clk 0:02:56]}  e4 {[%clk 0:02:44]} 8. h3 {[%clk 0:02:56]}  O-O {[%clk 0:02:43]} 9. Nd2 {[%clk 0:02:56]}  Be6 {[%clk 0:02:43]} 10. b3 {[%clk 0:02:56]}  f5 {[%clk 0:02:43]} 11. Ba3 {[%clk 0:02:55]}  Qd7 {[%clk 0:02:38]} 12. h4 {[%clk 0:02:54]}  h6 {[%clk 0:02:20]} 13. Qc2 {[%clk 0:02:53]}  g5 {[%clk 0:02:12]} 14. hxg5 {[%clk 0:02:52]}  hxg5 {[%clk 0:02:13]} 15. Bh3 {[%clk 0:02:51]}  Rf6 {[%clk 0:02:04]} 16. O-O-O {[%clk 0:02:48]}  a6 {[%clk 0:01:50]} 17. Kb2 {[%clk 0:02:48]}  b5 {[%clk 0:01:50]} 18. axb5 {[%clk 0:02:48]}  axb5 {[%clk 0:01:50]} 19. Bc5 {[%clk 0:02:48]}  Rff8 {[%clk 0:01:47]} 20. b4 {[%clk 0:02:42]}  Ra4 {[%clk 0:01:44]} 21. Nb3 {[%clk 0:02:40]}  Rfa8 {[%clk 0:01:40]} 22. Ra1 {[%clk 0:02:39]}  Qc8 {[%clk 0:01:37]} 23. Bxe7 {[%clk 0:02:28]}  Nxe7 {[%clk 0:01:34]} 24. Rxa4 {[%clk 0:02:25]}  bxa4 {[%clk 0:01:25]} 25. Nc5 {[%clk 0:02:25]}  Bd7 {[%clk 0:01:15]} 26. Bf1 {[%clk 0:02:17]}  Bb5 {[%clk 0:01:09]} 27. Nc1 {[%clk 0:02:12]}  Bxf1 {[%clk 0:00:57]} 28. Rxf1 {[%clk 0:02:12]}  Qb8 {[%clk 0:00:54]} 29. Qe2 {[%clk 0:02:05]}  Nc6 {[%clk 0:00:48]} 30. Ka1 {[%clk 0:01:40]}  a3 {[%clk 0:00:46]} 31. Rh1 {[%clk 0:01:35]}  g4 {[%clk 0:00:32]} 32. Qa2 {[%clk 0:01:28]}  Ne7 {[%clk 0:00:20]} 33. Qb3 {[%clk 0:01:16]}  Qb5 {[%clk 0:00:20]} 34. Ka2 {[%clk 0:01:14]}  c6 {[%clk 0:00:16]} 35. Qc2 {[%clk 0:01:14]}  Nc8 {[%clk 0:00:15]} 36. Ne2 {[%clk 0:01:11]}  Qc4+ {[%clk 0:00:15]} 37. Nb3 {[%clk 0:01:11]}  Nb6 {[%clk 0:00:13]} 38. Nf4 {[%clk 0:01:08]}  Na4 {[%clk 0:00:12]} 39. Rc1 {[%clk 0:01:06]}  Kf7 {[%clk 0:00:08]} 40. Ka1 {[%clk 0:01:00]}  Ra7 {[%clk 0:00:06]} 41. Na5 {[%clk 0:00:56]}  Qb5 {[%clk 0:00:05]} 42. Ka2 {[%clk 0:00:46]}  Ra6 {[%clk 0:00:03]} 43. Qb3 {[%clk 0:00:41]}  Ra7 {[%clk 0:00:02]} 44. c4 {[%clk 0:00:41]}  dxc4 {[%clk 0:00:02]} 45. Rxc4 {[%clk 0:00:39]}  Kf8 {[%clk 0:00:01]} 46. Rxc6 {[%clk 0:00:36]}  Rxa5 {[%clk 0:00:01]} 47. Rc8+ {[%clk 0:00:35]}  Ke7 {[%clk 0:00:01]} 48. Qe6# {[%clk 0:00:34]} 1-0


[Site "https://www.chess.com"]

[Event "Titled Tuesday Blitz November 07 Early 2023"]
[White "Bolivar Losada, Jeison"]
[Black "Buchenau, Frank"]
[WhiteFideId "4404793"]
[BlackFideId "4604350"]
[WhiteElo "2250"]
[BlackElo "2480"]
[Result "0-1"]
[Round "4"]
[TimeControl "180+1"]
[Date "2023.11.07"]
[WhiteClock "0:00:00"]
[BlackClock "0:00:11"]
[Board "215"]

1. e4 {[%clk 0:00:59]}  e6 {[%clk 0:02:50]} 2. d4 {[%clk 0:00:59]}  d5 {[%clk 0:02:48]} 3. e5 {[%clk 0:01:00]}  c5 {[%clk 0:02:46]} 4. c3 {[%clk 0:01:00]}  Qb6 {[%clk 0:02:44]} 5. Nf3 {[%clk 0:01:00]}  Bd7 {[%clk 0:02:44]} 6. a3 {[%clk 0:01:00]}  Bb5 {[%clk 0:02:42]} 7. Bd3 {[%clk 0:00:57]}  Bxd3 {[%clk 0:02:38]} 8. Qxd3 {[%clk 0:00:58]}  Qa6 {[%clk 0:02:28]} 9. Qxa6 {[%clk 0:00:57]}  Nxa6 {[%clk 0:02:26]} 10. b4 {[%clk 0:00:57]}  cxd4 {[%clk 0:02:21]} 11. cxd4 {[%clk 0:00:57]}  Rc8 {[%clk 0:02:14]} 12. Kd2 {[%clk 0:00:54]}  Nc7 {[%clk 0:02:04]} 13. Nc3 {[%clk 0:00:52]}  Na8 {[%clk 0:01:56]} 14. Kd3 {[%clk 0:00:48]}  Ne7 {[%clk 0:01:43]} 15. Bb2 {[%clk 0:00:48]}  Nb6 {[%clk 0:01:34]} 16. Nd2 {[%clk 0:00:47]}  Nc4 {[%clk 0:01:27]} 17. Nxc4 {[%clk 0:00:43]}  Rxc4 {[%clk 0:01:23]} 18. Nb5 {[%clk 0:00:40]}  Nc8 {[%clk 0:01:20]} 19. Rac1 {[%clk 0:00:37]}  a6 {[%clk 0:01:19]} 20. Nc3 {[%clk 0:00:18]}  Be7 {[%clk 0:01:09]} 21. Nd1 {[%clk 0:00:15]}  Nb6 {[%clk 0:00:56]} 22. Ne3 {[%clk 0:00:13]}  Rxc1 {[%clk 0:00:45]} 23. Rxc1 {[%clk 0:00:14]}  Kd7 {[%clk 0:00:45]} 24. f4 {[%clk 0:00:13]}  f6 {[%clk 0:00:43]} 25. Kc2 {[%clk 0:00:06]}  Rf8 {[%clk 0:00:37]} 26. g3 {[%clk 0:00:05]}  fxe5 {[%clk 0:00:37]} 27. dxe5 {[%clk 0:00:05]}  g5 {[%clk 0:00:37]} 28. Rf1 {[%clk 0:00:04]}  gxf4 {[%clk 0:00:34]} 29. Rxf4 {[%clk 0:00:04]}  Rc8+ {[%clk 0:00:22]} 30. Kd3 {[%clk 0:00:04]}  Bg5 {[%clk 0:00:12]} 31. Rf7+ {[%clk 0:00:03]}  Ke8 {[%clk 0:00:12]} 32. Rxh7 {[%clk 0:00:02]}  Bxe3 {[%clk 0:00:12]} 33. Rh8+ {[%clk 0:00:00]}  Kd7 {[%clk 0:00:11]} 0-1


[Site "https://www.chess.com"]

[Event "Titled Tuesday Blitz November 07 Early 2023"]
[White "Marcziter, Dmitrii"]
[Black "Hartikainen, Jarmo"]
[WhiteFideId "13900765"]
[BlackFideId "503134"]
[WhiteElo "2389"]
[BlackElo "2185"]
[Result "1-0"]
[Round "4"]
[TimeControl "180+1"]
[Date "2023.11.07"]
[WhiteClock "0:00:20"]
[BlackClock "0:00:00"]
[Board "219"]

1. d4 {[%clk 0:02:06]}  d5 {[%clk 0:02:59]} 2. c4 {[%clk 0:02:06]}  c5 {[%clk 0:02:59]} 3. e3 {[%clk 0:02:05]}  cxd4 {[%clk 0:02:56]} 4. exd4 {[%clk 0:02:05]}  Nf6 {[%clk 0:02:55]} 5. Nc3 {[%clk 0:02:04]}  Nc6 {[%clk 0:02:55]} 6. Bg5 {[%clk 0:02:03]}  e6 {[%clk 0:02:53]} 7. Nf3 {[%clk 0:01:58]}  Be7 {[%clk 0:02:52]} 8. Bd3 {[%clk 0:01:56]}  dxc4 {[%clk 0:02:51]} 9. Bxc4 {[%clk 0:01:55]}  O-O {[%clk 0:02:50]} 10. a3 {[%clk 0:01:54]}  b6 {[%clk 0:02:49]} 11. O-O {[%clk 0:01:53]}  Bb7 {[%clk 0:02:50]} 12. Qd3 {[%clk 0:01:51]}  Rc8 {[%clk 0:02:07]} 13. Rad1 {[%clk 0:01:48]}  Qc7 {[%clk 0:01:50]} 14. Ba2 {[%clk 0:01:46]}  Rcd8 {[%clk 0:01:41]} 15. Qe2 {[%clk 0:01:43]}  a6 {[%clk 0:01:32]} 16. Rfe1 {[%clk 0:01:41]}  Rfe8 {[%clk 0:01:28]} 17. h3 {[%clk 0:01:33]}  b5 {[%clk 0:01:20]} 18. Bxf6 {[%clk 0:01:21]}  Bxf6 {[%clk 0:01:19]} 19. d5 {[%clk 0:01:20]}  Na5 {[%clk 0:01:02]} 20. dxe6 {[%clk 0:01:17]}  fxe6 {[%clk 0:00:45]} 21. Bxe6+ {[%clk 0:01:16]}  Kh8 {[%clk 0:00:44]} 22. Rxd8 {[%clk 0:01:11]}  Qxd8 {[%clk 0:00:29]} 23. Ne5 {[%clk 0:00:59]}  Bxe5 {[%clk 0:00:22]} 24. Qxe5 {[%clk 0:00:59]}  Qe7 {[%clk 0:00:21]} 25. Nd5 {[%clk 0:00:54]}  Bxd5 {[%clk 0:00:20]} 26. Qxd5 {[%clk 0:00:54]}  Nc4 {[%clk 0:00:20]} 27. Re2 {[%clk 0:00:47]}  Nxb2 {[%clk 0:00:20]} 28. Bg4 {[%clk 0:00:42]}  Qd8 {[%clk 0:00:07]} 29. Qxd8 {[%clk 0:00:38]}  Rxd8 {[%clk 0:00:08]} 30. Rxb2 {[%clk 0:00:38]}  Rd3 {[%clk 0:00:08]} 31. Ra2 {[%clk 0:00:38]}  g6 {[%clk 0:00:07]} 32. Bc8 {[%clk 0:00:35]}  Rd6 {[%clk 0:00:06]} 33. a4 {[%clk 0:00:29]}  b4 {[%clk 0:00:05]} 34. a5 {[%clk 0:00:29]}  Rd5 {[%clk 0:00:05]} 35. Bxa6 {[%clk 0:00:27]}  b3 {[%clk 0:00:04]} 36. Rb2 {[%clk 0:00:25]}  Rxa5 {[%clk 0:00:04]} 37. Bc4 {[%clk 0:00:25]}  Ra1+ {[%clk 0:00:02]} 38. Kh2 {[%clk 0:00:24]}  Kg7 {[%clk 0:00:01]} 39. Bxb3 {[%clk 0:00:23]}  Kf6 {[%clk 0:00:02]} 40. f3 {[%clk 0:00:22]}  Ke5 {[%clk 0:00:02]} 41. Kg3 {[%clk 0:00:22]}  Kd4 {[%clk 0:00:02]} 42. Re2 {[%clk 0:00:22]}  Kd3 {[%clk 0:00:02]} 43. Re7 {[%clk 0:00:21]}  Rb1 {[%clk 0:00:02]} 44. Bg8 {[%clk 0:00:20]}  h6 {[%clk 0:00:00]} 45. Bh7 {[%clk 0:00:20]} 1-0


[Site "https://www.chess.com"]

[Event "Titled Tuesday Blitz November 07 Early 2023"]
[White "Smirnov, Timofey"]
[Black "La Villa Rivas, Marlon Javier"]
[WhiteFideId "24176427"]
[BlackFideId "3519546"]
[WhiteElo "2166"]
[BlackElo "2388"]
[Result "0-1"]
[Round "4"]
[TimeControl "180+1"]
[Date "2023.11.07"]
[WhiteClock "0:00:48"]
[BlackClock "0:02:06"]
[Board "220"]

1. d4 {[%clk 0:03:00]}  Nf6 {[%clk 0:02:54]} 2. Bf4 {[%clk 0:03:00]}  d5 {[%clk 0:02:53]} 3. e3 {[%clk 0:03:01]}  c5 {[%clk 0:02:53]} 4. c3 {[%clk 0:03:01]}  Nc6 {[%clk 0:02:53]} 5. Nd2 {[%clk 0:03:01]}  Bg4 {[%clk 0:02:52]} 6. Qb3 {[%clk 0:02:54]}  Qc8 {[%clk 0:02:42]} 7. h3 {[%clk 0:02:09]}  Bd7 {[%clk 0:02:38]} 8. Ngf3 {[%clk 0:02:08]}  e6 {[%clk 0:02:37]} 9. Ne5 {[%clk 0:02:07]}  Nxe5 {[%clk 0:02:34]} 10. Bxe5 {[%clk 0:02:05]}  Be7 {[%clk 0:02:33]} 11. Nf3 {[%clk 0:02:03]}  O-O {[%clk 0:02:33]} 12. Be2 {[%clk 0:01:52]}  Ne4 {[%clk 0:02:32]} 13. O-O {[%clk 0:01:49]}  c4 {[%clk 0:02:29]} 14. Qc2 {[%clk 0:01:48]}  b5 {[%clk 0:02:29]} 15. b3 {[%clk 0:01:45]}  cxb3 {[%clk 0:02:25]} 16. Qxb3 {[%clk 0:01:42]}  Qxc3 {[%clk 0:02:24]} 17. Bxb5 {[%clk 0:01:42]}  Qxb3 {[%clk 0:02:24]} 18. axb3 {[%clk 0:01:14]}  Bxb5 {[%clk 0:02:23]} 19. Rfc1 {[%clk 0:01:13]}  a5 {[%clk 0:02:13]} 20. Bc7 {[%clk 0:01:04]}  a4 {[%clk 0:02:13]} 21. bxa4 {[%clk 0:01:03]}  Rxa4 {[%clk 0:02:12]} 22. Ne5 {[%clk 0:00:59]}  Rfa8 {[%clk 0:02:08]} 23. Rxa4 {[%clk 0:00:54]}  Rxa4 {[%clk 0:02:08]} 24. Bd6 {[%clk 0:00:48]}  Bxd6 {[%clk 0:02:06]} 0-1


[Site "https://www.chess.com"]

[Event "Titled Tuesday Blitz November 07 Early 2023"]
[White "Vila Dupla, Aurelio"]
[Black "Spichkin, Alexander"]
[WhiteFideId "2203383"]
[BlackFideId "4144074"]
[WhiteElo "2161"]
[BlackElo "2355"]
[Result "0-1"]
[Round "4"]
[TimeControl "180+1"]
[Date "2023.11.07"]
[WhiteClock "0:00:00"]
[BlackClock "0:00:17"]
[Board "223"]

1. Nf3 {[%clk 0:03:00]}  f5 {[%clk 0:02:42]} 2. c4 {[%clk 0:02:58]}  Nf6 {[%clk 0:02:42]} 3. g3 {[%clk 0:02:58]}  d6 {[%clk 0:02:42]} 4. d4 {[%clk 0:02:57]}  e6 {[%clk 0:02:42]} 5. Bg2 {[%clk 0:02:57]}  Be7 {[%clk 0:02:40]} 6. O-O {[%clk 0:02:57]}  O-O {[%clk 0:02:40]} 7. Nc3 {[%clk 0:02:56]}  a5 {[%clk 0:02:37]} 8. Re1 {[%clk 0:02:52]}  Ne4 {[%clk 0:02:29]} 9. Bd2 {[%clk 0:02:32]}  Qe8 {[%clk 0:02:15]} 10. Qc2 {[%clk 0:02:28]}  Nxc3 {[%clk 0:02:11]} 11. Bxc3 {[%clk 0:02:28]}  Qh5 {[%clk 0:02:11]} 12. e4 {[%clk 0:02:24]}  f4 {[%clk 0:02:11]} 13. e5 {[%clk 0:02:15]}  d5 {[%clk 0:01:58]} 14. Rf1 {[%clk 0:02:06]}  g5 {[%clk 0:01:48]} 15. h3 {[%clk 0:01:38]}  g4 {[%clk 0:01:36]} 16. hxg4 {[%clk 0:01:36]}  Qxg4 {[%clk 0:01:33]} 17. Nh2 {[%clk 0:01:36]}  Qg7 {[%clk 0:01:25]} 18. g4 {[%clk 0:01:34]}  c6 {[%clk 0:01:14]} 19. Qd2 {[%clk 0:01:12]}  f3 {[%clk 0:01:05]} 20. Nxf3 {[%clk 0:00:59]}  Qxg4 {[%clk 0:01:04]} 21. Qe3 {[%clk 0:00:57]}  dxc4 {[%clk 0:00:43]} 22. Nh2 {[%clk 0:00:57]}  Qg7 {[%clk 0:00:41]} 23. f4 {[%clk 0:00:56]}  Na6 {[%clk 0:00:41]} 24. Kh1 {[%clk 0:00:56]}  Nb4 {[%clk 0:00:40]} 25. Bxb4 {[%clk 0:00:51]}  axb4 {[%clk 0:00:39]} 26. Rg1 {[%clk 0:00:51]}  Kh8 {[%clk 0:00:39]} 27. Bxc6 {[%clk 0:00:38]}  Qh6 {[%clk 0:00:37]} 28. Qg3 {[%clk 0:00:16]}  bxc6 {[%clk 0:00:34]} 29. Raf1 {[%clk 0:00:14]}  Bb7 {[%clk 0:00:27]} 30. Rf3 {[%clk 0:00:03]}  c5 {[%clk 0:00:25]} 31. Rf1 {[%clk 0:00:04]}  Rxf4 {[%clk 0:00:22]} 32. Kg1 {[%clk 0:00:01]}  Rxf3 {[%clk 0:00:19]} 33. Rxf3 {[%clk 0:00:00]}  Rg8 {[%clk 0:00:17]} 0-1


[Site "https://www.chess.com"]

[Event "Titled Tuesday Blitz November 07 Early 2023"]
[White "Petersson, Kjell"]
[Black "Fajdetic, Hrvoje"]
[WhiteFideId "1705148"]
[BlackFideId "14501945"]
[WhiteElo "2144"]
[BlackElo "2345"]
[Result "0-1"]
[Round "4"]
[TimeControl "180+1"]
[Date "2023.11.07"]
[WhiteClock "0:00:00"]
[BlackClock "0:00:06"]
[Board "224"]

1. d4 {[%clk 0:03:00]}  e6 {[%clk 0:02:58]} 2. Bf4 {[%clk 0:03:01]}  f5 {[%clk 0:02:50]} 3. e3 {[%clk 0:02:59]}  Nf6 {[%clk 0:02:50]} 4. Nf3 {[%clk 0:02:58]}  Be7 {[%clk 0:02:44]} 5. Bd3 {[%clk 0:02:57]}  O-O {[%clk 0:02:43]} 6. c4 {[%clk 0:02:54]}  b6 {[%clk 0:02:38]} 7. Nc3 {[%clk 0:02:52]}  Bb7 {[%clk 0:02:38]} 8. O-O {[%clk 0:02:49]}  Ne4 {[%clk 0:02:34]} 9. h3 {[%clk 0:02:24]}  d6 {[%clk 0:02:12]} 10. Nd2 {[%clk 0:02:15]}  Nxd2 {[%clk 0:01:54]} 11. Qxd2 {[%clk 0:02:15]}  Bf6 {[%clk 0:01:54]} 12. Bg3 {[%clk 0:01:52]}  g6 {[%clk 0:01:36]} 13. Qc2 {[%clk 0:01:38]}  Nc6 {[%clk 0:01:26]} 14. a3 {[%clk 0:01:37]}  e5 {[%clk 0:01:24]} 15. d5 {[%clk 0:01:27]}  Ne7 {[%clk 0:01:14]} 16. b4 {[%clk 0:01:25]}  e4 {[%clk 0:01:08]} 17. Be2 {[%clk 0:01:25]}  h5 {[%clk 0:00:34]} 18. Rab1 {[%clk 0:01:24]}  h4 {[%clk 0:00:34]} 19. Bh2 {[%clk 0:01:24]}  Qe8 {[%clk 0:00:29]} 20. Rfd1 {[%clk 0:01:17]}  Qf7 {[%clk 0:00:26]} 21. Qd2 {[%clk 0:01:09]}  Qg7 {[%clk 0:00:23]} 22. Nb5 {[%clk 0:01:06]}  Rfc8 {[%clk 0:00:23]} 23. Nd4 {[%clk 0:00:49]}  Bxd4 {[%clk 0:00:21]} 24. exd4 {[%clk 0:00:45]}  g5 {[%clk 0:00:18]} 25. Rb3 {[%clk 0:00:39]}  Qf6 {[%clk 0:00:17]} 26. f4 {[%clk 0:00:27]}  g4 {[%clk 0:00:13]} 27. hxg4 {[%clk 0:00:27]}  fxg4 {[%clk 0:00:13]} 28. Bxg4 {[%clk 0:00:27]}  Nf5 {[%clk 0:00:13]} 29. Qe2 {[%clk 0:00:20]}  Re8 {[%clk 0:00:11]} 30. Rh3 {[%clk 0:00:16]}  Nh6 {[%clk 0:00:10]} 31. Kh1 {[%clk 0:00:14]}  Kh7 {[%clk 0:00:08]} 32. Bh5 {[%clk 0:00:11]}  Rg8 {[%clk 0:00:07]} 33. Qf2 {[%clk 0:00:09]}  Rg7 {[%clk 0:00:06]} 34. Qxh4 {[%clk 0:00:08]}  Qxh4 {[%clk 0:00:05]} 35. Rxh4 {[%clk 0:00:09]}  Rag8 {[%clk 0:00:05]} 36. g3 {[%clk 0:00:06]}  b5 {[%clk 0:00:06]} 37. cxb5 {[%clk 0:00:03]}  Bxd5 {[%clk 0:00:06]} 38. Kg1 {[%clk 0:00:03]}  Rxg3+ {[%clk 0:00:05]} 39. Bxg3 {[%clk 0:00:02]}  Rxg3+ {[%clk 0:00:06]} 40. Kf2 {[%clk 0:00:02]}  Rxa3 {[%clk 0:00:06]} 41. Be2 {[%clk 0:00:00]}  e3+ {[%clk 0:00:06]} 0-1


[Site "https://www.chess.com"]

[Event "Titled Tuesday Blitz November 07 Early 2023"]
[White "Buscar, Michael"]
[Black "Feliz Dotel, Dewar Bienvenido"]
[WhiteFideId "2603616"]
[BlackFideId "6402801"]
[WhiteElo "2318"]
[BlackElo "2121"]
[Result "1/2-1/2"]
[Round "4"]
[TimeControl "180+1"]
[Date "2023.11.07"]
[WhiteClock "0:00:11"]
[BlackClock "0:00:37"]
[Board "229"]

1. e4 {[%clk 0:02:15]}  e5 {[%clk 0:02:59]} 2. Nf3 {[%clk 0:02:16]}  Nc6 {[%clk 0:02:59]} 3. Bb5 {[%clk 0:02:14]}  Nf6 {[%clk 0:02:58]} 4. O-O {[%clk 0:02:13]}  Nxe4 {[%clk 0:02:59]} 5. Re1 {[%clk 0:02:13]}  Nd6 {[%clk 0:02:59]} 6. Nxe5 {[%clk 0:02:04]}  Be7 {[%clk 0:02:59]} 7. Nxc6 {[%clk 0:01:58]}  dxc6 {[%clk 0:02:54]} 8. Bf1 {[%clk 0:01:58]}  O-O {[%clk 0:02:53]} 9. d4 {[%clk 0:01:57]}  Ne8 {[%clk 0:02:50]} 10. Nc3 {[%clk 0:01:51]}  Bf5 {[%clk 0:02:48]} 11. Ne4 {[%clk 0:01:48]}  Bxe4 {[%clk 0:02:40]} 12. Rxe4 {[%clk 0:01:47]}  Nf6 {[%clk 0:02:40]} 13. Re1 {[%clk 0:01:40]}  Bd6 {[%clk 0:02:40]} 14. c4 {[%clk 0:01:33]}  c5 {[%clk 0:02:28]} 15. d5 {[%clk 0:01:24]}  Qd7 {[%clk 0:02:22]} 16. b3 {[%clk 0:01:18]}  Rfe8 {[%clk 0:02:10]} 17. Bb2 {[%clk 0:01:14]}  Qf5 {[%clk 0:02:09]} 18. Qd2 {[%clk 0:00:47]}  Ng4 {[%clk 0:01:43]} 19. g3 {[%clk 0:00:35]}  Qh5 {[%clk 0:01:31]} 20. h3 {[%clk 0:00:33]}  Ne5 {[%clk 0:01:22]} 21. Bg2 {[%clk 0:00:22]}  Nf3+ {[%clk 0:01:14]} 22. Bxf3 {[%clk 0:00:18]}  Qxf3 {[%clk 0:01:15]} 23. Qc3 {[%clk 0:00:18]}  Qxc3 {[%clk 0:01:07]} 24. Bxc3 {[%clk 0:00:19]}  f6 {[%clk 0:01:05]} 25. h4 {[%clk 0:00:17]}  Kf7 {[%clk 0:01:04]} 26. f4 {[%clk 0:00:16]}  h5 {[%clk 0:01:04]} 27. Kf2 {[%clk 0:00:17]}  a6 {[%clk 0:00:57]} 28. Rxe8 {[%clk 0:00:16]}  Rxe8 {[%clk 0:00:57]} 29. Re1 {[%clk 0:00:17]}  Rxe1 {[%clk 0:00:57]} 30. Kxe1 {[%clk 0:00:18]}  Kg6 {[%clk 0:00:57]} 31. Ke2 {[%clk 0:00:18]}  Kf5 {[%clk 0:00:58]} 32. Kf3 {[%clk 0:00:19]}  g5 {[%clk 0:00:57]} 33. hxg5 {[%clk 0:00:19]}  fxg5 {[%clk 0:00:57]} 34. fxg5 {[%clk 0:00:19]}  Kxg5 {[%clk 0:00:57]} 35. Bd2+ {[%clk 0:00:19]}  Kf5 {[%clk 0:00:57]} 36. Be3 {[%clk 0:00:19]}  b6 {[%clk 0:00:43]} 37. Bd2 {[%clk 0:00:19]}  Be5 {[%clk 0:00:42]} 38. Bh6 {[%clk 0:00:15]}  Bd6 {[%clk 0:00:39]} 39. Bg7 {[%clk 0:00:14]}  Kg6 {[%clk 0:00:39]} 40. Bc3 {[%clk 0:00:12]}  Kf5 {[%clk 0:00:39]} 41. Bb2 {[%clk 0:00:12]}  a5 {[%clk 0:00:38]} 42. Bc3 {[%clk 0:00:11]}  Kg5 {[%clk 0:00:37]} 43. Bd2+ {[%clk 0:00:10]}  Kf5 {[%clk 0:00:37]} 44. Bc3 {[%clk 0:00:11]}  Kg5 {[%clk 0:00:37]} 45. Bd2+ {[%clk 0:00:11]}  Kf5 {[%clk 0:00:37]} 46. Bc3 {[%clk 0:00:11]} 1/2-1/2


[Site "https://www.chess.com"]

[Event "Titled Tuesday Blitz November 07 Early 2023"]
[White "ChessDojo"]
[Black "Minina, Veronika"]
[BlackFideId "4174780"]
[WhiteElo "2120"]
[BlackElo "2314"]
[Result "0-1"]
[Round "4"]
[TimeControl "180+1"]
[Date "2023.11.07"]
[WhiteClock "0:02:02"]
[BlackClock "0:01:11"]
[Board "230"]

1. d4 {[%clk 0:03:00]}  Nf6 {[%clk 0:02:57]} 2. c4 {[%clk 0:03:01]}  g6 {[%clk 0:02:56]} 3. Nc3 {[%clk 0:02:58]}  Bg7 {[%clk 0:02:56]} 4. e4 {[%clk 0:02:57]}  d6 {[%clk 0:02:56]} 5. f3 {[%clk 0:02:58]}  O-O {[%clk 0:02:54]} 6. Be3 {[%clk 0:02:58]}  c5 {[%clk 0:02:54]} 7. Bd3 {[%clk 0:02:56]}  Nc6 {[%clk 0:02:38]} 8. Nge2 {[%clk 0:02:53]}  cxd4 {[%clk 0:02:37]} 9. Nxd4 {[%clk 0:02:52]}  a5 {[%clk 0:02:37]} 10. O-O {[%clk 0:02:51]}  Nd7 {[%clk 0:02:27]} 11. Be2 {[%clk 0:02:46]}  Qb6 {[%clk 0:02:07]} 12. Nf5 {[%clk 0:02:31]}  Qxb2 {[%clk 0:02:06]} 13. Nxg7 {[%clk 0:02:31]}  Qxc3 {[%clk 0:02:05]} 14. Bh6 {[%clk 0:02:27]}  Qd4+ {[%clk 0:01:58]} 15. Kh1 {[%clk 0:02:26]}  Qxd1 {[%clk 0:01:46]} 16. Rfxd1 {[%clk 0:02:26]}  Nc5 {[%clk 0:01:38]} 17. f4 {[%clk 0:02:24]}  Nxe4 {[%clk 0:01:32]} 18. Bd3 {[%clk 0:02:23]}  Nf2+ {[%clk 0:01:31]} 19. Kg1 {[%clk 0:02:22]}  Nxd1 {[%clk 0:01:32]} 20. Rxd1 {[%clk 0:02:22]}  a4 {[%clk 0:01:21]} 21. c5 {[%clk 0:02:22]}  dxc5 {[%clk 0:01:20]} 22. Bc4 {[%clk 0:02:23]}  Nd4 {[%clk 0:01:20]} 23. h4 {[%clk 0:02:17]}  Bg4 {[%clk 0:01:19]} 24. Re1 {[%clk 0:02:15]}  e6 {[%clk 0:01:14]} 25. h5 {[%clk 0:02:13]}  Rfd8 {[%clk 0:01:12]} 26. hxg6 {[%clk 0:02:12]}  hxg6 {[%clk 0:01:11]} 27. Re4 {[%clk 0:02:02]}  b5 {[%clk 0:01:11]} 0-1


[Site "https://www.chess.com"]